[Event "LTU-chT 2019"]
[Site "Lithuania"]
[Date "2019.03.30"]
[Round "3.16"]
[White "Chocenka, Dmitrijus"]
[Black "Zukauskas, Arnas Povilas"]
[Result "1-0"]
[ECO "E62"]
[WhiteElo "2287"]
[BlackElo "2108"]
[Annotator "NA"]
[PlyCount "97"]
[EventDate "2019.01.26"]
[EventType "team-tourn"]
[EventCountry "LTU"]
[SourceTitle "playchess.com"]
[Source "ChessBase"]
[SourceQuality "1"]
[TimeControl "40/5400+30:1800+30"]

1. d4 {[%emt 0:00:00]} Nf6 {[%emt 0:00:00]} 2. c4 {[%emt 0:00:00]} g6 {[%emt 0:00:00]} 3. Nc3 {[%emt 0:00:00]} Bg7 {[%emt 0:00:00]} 4. g3 {[%emt 0:00:00]} O-O {[%emt 0:00:22]} 5. Bg2 {[%emt 0:00:00]} d6 {[%emt 0:00:46]} 6. Nf3 {[%emt 0:00:02]} Nc6 {[%emt 0:00:50]} 7. O-O {[%emt 0:00:08]} e5 {[%emt 0:01:33]} 8. d5 {[%emt 0:00:28]} Ne7 {[%emt 0:00:04]} 9. e4 {[%emt 0:00:41]} Ne8 {[%emt 0:00:30]} 10. Ne1 {[%emt 0:02:24]} c6 {[%emt 0:14:54] E62: King's Indian: Fianchetto: 6...c6 and Panno Variation (6...Nc6) without ...a6} (10... f5 11. f4 exf4 12. Bxf4 h6 13. Nc2 fxe4 14. Qd2 Nf5 15. Bxe4 Nf6 16. Bxf5 Bxf5 17. Nd4 Ng4 18. Ne6 Bxe6 19. dxe6 Bxc3 20. bxc3 {1-0 (35) Sasikiran,K (2654)-Cerveny,M (2399) Czech Republic 2017}) 11. Be3 $146 {[%emt 0:05:13]} ({Predecessor:} 11. f4 f5 12. fxe5 dxe5 13. dxc6 Qxd1 14. Nxd1 Nxc6 15. Nc2 Nd6 16. exf5 Bxf5 17. Bd5+ Kh8 {0-1 (69) Petrova,E (1457)-Osmolovska,Y (1566) Minsk 2018}) 11... cxd5 {[%emt 0:10:48]} 12. cxd5 {[%emt 0:03:09]} f5 {[%emt 0:00:08]} 13. f3 {[%emt 0:01:31]} Nf6 {[%emt 0:03:46]} 14. Kh1 {[%emt 0:04:37]} h6 {[%emt 0:06:07]} 15. Rc1 {[%emt 0:02:02]} g5 {[%emt 0:04:10]} 16. Nb5 {[%emt 0:14:09]} fxe4 {[%emt 0:16:42]} 17. fxe4 {[%emt 0:02:18]} Bg4 {[%emt 0:15:01]} 18. Qd3 {[%emt 0:03:32]} Ne8 {[%emt 0:03:40]} 19. Rxf8+ {[%emt 0:01:21]} Bxf8 {[%emt 0:00:02]} 20. Nf3 {[%emt 0:02:50]} a6 {[%emt 0:00:38]} 21. Nc3 {[%emt 0:00:20]} Rc8 {[%emt 0:01:33]} 22. h3 {[%emt 0:01:11]} Bh5 {[%emt 0:01:11]} 23. Rf1 {[%emt 0:02:04]} Bg7 {[%emt 0:02:16]} 24. a4 {[%emt 0:05:02]} Nf6 {[%emt 0:01:30]} 25. Nd2 {[%emt 0:01:12]} Be8 {[%emt 0:04:48]} 26. Ra1 {[%emt 0:02:32]} Qc7 {[%emt 0:07:45]} 27. Ra3 {[%emt 0:05:58]} Rd8 {[%emt 0:02:05]} 28. a5 {[%emt 0:06:14]} Nc8 {[%emt 0:00:13]} 29. Nc4 {[%emt 0:02:47]} Nd7 {[%emt 0:01:42]} 30. Na4 {[%emt 0:00:29]} Nc5 {[%emt 0:00:19]} (30... Nf6 $16) 31. Nxc5 {[%emt 0:00:52]} dxc5 {[%emt 0:00:04]} 32. Qc3 {[%emt 0:01:15]} (32. Rc3 $142) 32... Bb5 {[%emt 0:01:19]} 33. Ra1 {[%emt 0:00:31]} Bf8 {[%emt 0:00:55]} 34. Qxe5 {[%emt 0:03:13]} Qxe5 {[%emt 0:00:17]} 35. Nxe5 {[%emt 0:00:06]} Bg7 {[%emt 0:00:29]} 36. Ng4 {[%emt 0:00:25]} Bxb2 {[%emt 0:00:57]} 37. Ra2 {[%emt 0:01:09]} Bg7 {[%emt 0:00:28]} 38. Bxc5 {[%emt 0:00:21]} h5 {[%emt 0:01:06]} 39. Ne3 {[%emt 0:00:27]} Nd6 {[%emt 0:00:00]} 40. Bxd6 {[%emt 0:02:00]} Rxd6 {[%emt 0:00:00]} 41. Nf5 {[%emt 0:30:07]} Rd8 {[%emt 0:30:27]} 42. Nxg7 {[%emt 0:00:33]} Kxg7 {[%emt 0:00:01]} 43. Rc2 {[%emt 0:01:17]} Kf6 {[%emt 0:01:21]} 44. Rf2+ {[%emt 0:00:10]} Ke7 {[%emt 0:00:00]} 45. Rf5 {[%emt 0:00:00]} Rg8 {[%emt 0:00:00]} 46. e5 {[%emt 0:00:00]} Bd7 {[%emt 0:00:00]} 47. Rf6 {[%emt 0:00:00]} g4 {[%emt 0:00:00]} 48. h4 {[%emt 0:00:00]} Rc8 $18 {[%emt 0:00:00]} 49. d6+ {[%emt 0:00:00] Discovered Attack} 1-0

[Event "LTU-chT 2019"]
[Site "Lithuania"]
[Date "2019.03.30"]
[Round "3.17"]
[White "Dambrauskas, Virginijus"]
[Black "Limontas, Martynas"]
[Result "0-1"]
[ECO "D07"]
[WhiteElo "2277"]
[BlackElo "2283"]
[Annotator "NA"]
[PlyCount "80"]
[EventDate "2019.01.26"]
[EventType "team-tourn"]
[EventCountry "LTU"]
[SourceTitle "playchess.com"]
[Source "ChessBase"]
[SourceQuality "1"]
[TimeControl "40/5400+30:1800+30"]

1. d4 {[%emt 0:00:00]} d5 {[%emt 0:00:00]} 2. c4 {[%emt 0:00:03]} Nc6 {[%emt 0:00:00]} 3. cxd5 {[%emt 0:00:32]} Qxd5 {[%emt 0:00:00]} 4. e3 {[%emt 0:00:16]} e5 {[%emt 0:00:00]} 5. Nc3 {[%emt 0:00:13]} Bb4 {[%emt 0:00:03]} 6. Bd2 {[%emt 0:00:10]} Bxc3 {[%emt 0:00:05]} 7. bxc3 {[%emt 0:00:08]} Nf6 {[%emt 0:00:05]} 8. Qb3 {[%emt 0:02:33] D07: Queen's Gambit: Chigorin Defence} (8. f3 e4 9. c4 Qf5 10. f4 O-O 11. Ne2 h5 12. d5 Ne7 13. Nd4 Qg6 14. Bb4 Re8 15. Nb5 a5 16. Ba3 Bg4 {0-1 (64) Malakhatko,V (2550)-Miladinovic,I (2567) Algiers 2012}) 8... Qd6 {[%emt 0:00:24]} 9. Bd3 {[%emt 0:00:46]} O-O {[%emt 0:02:29]} 10. Ne2 {[%emt 0:07:30]} a6 $146 {[%emt 0:09:42]} ({Predecessor:} 10... Re8 11. O-O a6 12. Ng3 Be6 13. Qc2 Rad8 14. Rfd1 b5 15. a4 b4 16. cxb4 exd4 {1-0 (49) Hornung,H (2009)-Margraf,C (1928) Bad Woerishofen 2018}) 11. Ng3 {[%emt 0:04:09]} Be6 {[%emt 0:06:14]} 12. Qc2 {[%emt 0:05:01]} Rad8 {[%emt 0:03:34]} 13. Be2 {[%emt 0:20:02]} Bg4 {[%emt 0:15:47]} 14. Bxg4 {[%emt 0:19:16]} Nxg4 {[%emt 0:00:15]} 15. O-O {[%emt 0:00:10]} Rfe8 {[%emt 0:16:41]} 16. Rad1 {[%emt 0:05:08]} b5 {[%emt 0:05:32]} 17. Bc1 {[%emt 0:02:11]} Qe6 {[%emt 0:04:07]} 18. Rfe1 {[%emt 0:05:42]} Nf6 {[%emt 0:06:50]} 19. Bb2 {[%emt 0:00:42]} Qxa2 {[%emt 0:03:51]} 20. Ra1 {[%emt 0:05:15]} Qc4 {[%emt 0:01:14]} 21. Qb1 {[%emt 0:00:28] [#]} (21. Qe2 $142) 21... a5 $1 {[%emt 0:01:18]} ({Don't play} 21... exd4 22. cxd4 a5 23. Rc1 $15) 22. Rc1 {[%emt 0:00:27]} a4 {[%emt 0:03:14]} 23. Nf1 {[%emt 0:00:52]} Na5 {[%emt 0:03:42]} 24. Nd2 {[%emt 0:00:34]} Qe2 {[%emt 0:01:44]} 25. Rc2 {[%emt 0:02:29]} Nc4 {[%emt 0:02:01]} 26. Nf3 {[%emt 0:06:01]} Qd3 {[%emt 0:00:08]} 27. Nxe5 $2 {[%emt 0:00:36]} (27. Ba3) 27... Rxe5 {[%emt 0:03:50]} 28. dxe5 {[%emt 0:00:10]} a3 {[%emt 0:00:04]} 29. exf6 {[%emt 0:04:19]} axb2 {[%emt 0:00:21]} 30. Rxb2 {[%emt 0:00:12]} Nxb2 {[%emt 0:00:12]} 31. Qxd3 {[%emt 0:01:47]} Nxd3 {[%emt 0:00:06]} 32. Ra7 {[%emt 0:00:07]} c5 {[%emt 0:01:39]} 33. g4 {[%emt 0:01:07]} gxf6 $19 {[%emt 0:00:13]} 34. Rb7 {[%emt 0:00:13]} b4 {[%emt 0:01:36]} 35. cxb4 {[%emt 0:00:08]} Nxb4 {[%emt 0:01:36]} 36. Rc7 {[%emt 0:00:19]} Rd1+ {[%emt 0:00:06]} 37. Kg2 {[%emt 0:00:20]} Rc1 {[%emt 0:00:04]} 38. Kf3 {[%emt 0:00:16]} c4 {[%emt 0:01:44]} 39. h4 {[%emt 0:00:56]} c3 {[%emt 0:00:17]} 40. h5 {[%emt 0:00:05]} h6 {[%emt 0:00:54]} 0-1

[Event "LTU-chT 2019"]
[Site "Lithuania"]
[Date "2019.03.30"]
[Round "3.18"]
[White "Mickevicius, Juras"]
[Black "Vaskevicius, Augustas"]
[Result "1-0"]
[ECO "A41"]
[WhiteElo "2273"]
[BlackElo "1935"]
[Annotator "NA"]
[PlyCount "77"]
[EventDate "2019.01.26"]
[EventType "team-tourn"]
[EventCountry "LTU"]
[SourceTitle "playchess.com"]
[Source "ChessBase"]
[SourceQuality "1"]
[TimeControl "40/5400+30:1800+30"]

1. d4 {[%emt 0:00:00]} d6 {[%emt 0:00:20]} 2. Nf3 {[%emt 0:00:00]} g6 {[%emt 0:00:28]} 3. c4 {[%emt 0:00:00]} Bg7 {[%emt 0:00:15]} 4. g3 {[%emt 0:00:00]} c5 {[%emt 0:01:21]} 5. d5 {[%emt 0:00:00]} Nf6 {[%emt 0:01:39]} 6. Nc3 {[%emt 0:00:03]} O-O {[%emt 0:04:00]} 7. Bg2 {[%emt 0:02:10]} Bg4 {[%emt 0:04:00]} 8. O-O {[%emt 0:00:32]} Qc8 {[%emt 0:03:35] E60: King's Indian: Unusual lines and Fianchetto Variation without Nc3} 9. Re1 {[%emt 0:06:05]} Na6 {[%emt 0:05:36]} 10. Bg5 {[%emt 0:03:48]} h6 $146 {[%emt 0:05:32]} ({Predecessor:} 10... Re8 11. Qd2 Nc7 12. e4 Nd7 13. Nh4 Ne5 14. b3 Bh3 15. f3 b5 16. cxb5 {½-½ (31) Paehtz,E (2498)-Michna,M (2375) Dresden 2016}) 11. Bf4 {[%emt 0:01:02]} Nc7 {[%emt 0:00:52]} 12. e4 {[%emt 0:01:55]} Nd7 {[%emt 0:02:09]} 13. h3 {[%emt 0:04:16]} Bxf3 {[%emt 0:00:17]} 14. Qxf3 {[%emt 0:00:03]} a6 {[%emt 0:01:20]} 15. a4 {[%emt 0:01:32]} b5 {[%emt 0:01:05]} 16. axb5 {[%emt 0:00:54]} axb5 {[%emt 0:00:01]} 17. cxb5 {[%emt 0:01:02]} Qb7 {[%emt 0:07:55]} 18. Bf1 {[%emt 0:01:21]} Ra7 {[%emt 0:03:31]} 19. Qe2 {[%emt 0:08:29]} Rfa8 {[%emt 0:01:25]} 20. Rab1 {[%emt 0:01:14]} Kh7 {[%emt 0:04:03]} 21. Be3 {[%emt 0:01:35]} Nb6 {[%emt 0:03:53]} 22. Qd2 {[%emt 0:13:01]} Rc8 {[%emt 0:09:21]} 23. Red1 {[%emt 0:04:41]} Ne8 {[%emt 0:01:35]} 24. f4 {[%emt 0:04:51]} Nf6 {[%emt 0:02:41]} 25. Bf2 {[%emt 0:05:05]} Nfd7 {[%emt 0:02:34]} 26. Ra1 {[%emt 0:02:01]} Rca8 {[%emt 0:00:49]} 27. Ra6 {[%emt 0:01:33]} Nb8 {[%emt 0:02:58]} 28. Rxa7 {[%emt 0:00:15]} Qxa7 {[%emt 0:00:20]} 29. e5 {[%emt 0:02:41]} N8d7 {[%emt 0:02:16]} 30. e6 {[%emt 0:02:15]} Nf6 {[%emt 0:07:47]} (30... Bxc3 $142 31. Qxc3 (31. bxc3 fxe6 32. dxe6 Nf6 $16) 31... Nf6) 31. exf7 {[%emt 0:01:59]} Qa5 {[%emt 0:02:08]} 32. Qc2 {[%emt 0:04:13]} Nbd7 {[%emt 0:02:41]} 33. Re1 {[%emt 0:00:47]} Qd8 {[%emt 0:01:11]} 34. Bd3 {[%emt 0:01:33]} Nf8 {[%emt 0:00:13]} 35. Qe2 {[%emt 0:00:44]} Ra7 {[%emt 0:00:32]} 36. g4 {[%emt 0:03:10]} N6d7 {[%emt 0:02:12]} 37. h4 $18 {[%emt 0:02:36]} Kh8 {[%emt 0:00:20]} 38. g5 {[%emt 0:00:44]} Nb6 {[%emt 0:01:13]} 39. Qf3 {[%emt 0:02:41]} 1-0

[Event "LTU-chT 2019"]
[Site "Lithuania"]
[Date "2019.03.30"]
[Round "3.19"]
[White "Babrauskas, Darius"]
[Black "Bucinskas, Valdas"]
[Result "1/2-1/2"]
[ECO "B40"]
[WhiteElo "2019"]
[BlackElo "2297"]
[Annotator "NA"]
[PlyCount "96"]
[EventDate "2019.01.26"]
[EventType "team-tourn"]
[EventCountry "LTU"]
[SourceTitle "playchess.com"]
[Source "ChessBase"]
[SourceQuality "1"]
[TimeControl "40/5400+30:1800+30"]

1. e4 {[%emt 0:00:00]} c5 {[%emt 0:00:00]} 2. Nf3 {[%emt 0:00:00]} e6 {[%emt 0:00:09]} 3. d4 {[%emt 0:00:00]} cxd4 {[%emt 0:00:06]} 4. Nxd4 {[%emt 0:00:00]} Qb6 {[%emt 0:00:21]} 5. c3 {[%emt 0:00:43]} a6 {[%emt 0:02:12]} 6. Nd2 {[%emt 0:02:30] B40: Sicilian: 2...e6, Unusual lines} (6. Be2 Qc7 7. f4 Bc5 8. O-O d6 9. Kh1 Nf6 10. Bf3 O-O 11. Qe1 e5 12. Nb3 Ba7 13. Qg3 Nbd7 14. Na3 b5 15. fxe5 dxe5 16. Bh6 Ne8 17. Nc2 Bb7 18. Rae1 Kh8 19. Be3 {½-½ (19) Short,N (2665)-Khalifman,A (2650) Parnu 1996}) 6... d6 $146 {[%emt 0:01:04]} ({Predecessor:} 6... Qc7 7. a4 b6 8. Bd3 Nf6 9. O-O Be7 10. Qe2 d6 11. f4 Nbd7 12. N2f3 Nc5 13. Bc2 {1-0 (41) Isonzo,D (2360)-Straub,P (2096) Milan 2002}) 7. Bd3 {[%emt 0:02:13]} Nf6 {[%emt 0:03:46]} 8. O-O {[%emt 0:01:40]} Be7 {[%emt 0:00:26]} 9. a4 {[%emt 0:00:35]} Nc6 {[%emt 0:07:14]} 10. Nc4 {[%emt 0:01:41]} Qc7 {[%emt 0:00:49]} 11. Be3 {[%emt 0:04:54]} Ne5 {[%emt 0:07:39]} 12. Nxe5 {[%emt 0:01:16]} dxe5 {[%emt 0:00:05]} 13. Nb3 {[%emt 0:04:38]} b6 {[%emt 0:03:15]} 14. a5 {[%emt 0:05:24]} b5 {[%emt 0:00:16]} 15. Qf3 {[%emt 0:03:03]} O-O {[%emt 0:02:40]} 16. Rfe1 {[%emt 0:02:00]} Bb7 {[%emt 0:00:39]} 17. Rac1 {[%emt 0:14:46]} Rfc8 {[%emt 0:18:14]} 18. Bb6 {[%emt 0:09:45]} Qb8 {[%emt 0:04:30]} 19. Rcd1 {[%emt 0:02:22]} Nd7 {[%emt 0:01:41]} 20. Be3 $1 {[%emt 0:00:16]} Bc6 {[%emt 0:00:38]} 21. Bc2 {[%emt 0:00:49]} (21. Ra1 $11) 21... b4 {[%emt 0:07:14]} 22. c4 {[%emt 0:06:38]} Ba4 {[%emt 0:06:31]} 23. Na1 {[%emt 0:03:56]} Bc6 {[%emt 0:01:13]} ({Black should try} 23... b3 $1 $15 24. Bxb3 Bc6) 24. Nb3 {[%emt 0:00:08]} Qc7 {[%emt 0:04:08]} 25. Ra1 {[%emt 0:01:14]} Qb7 {[%emt 0:07:03]} 26. Qg3 {[%emt 0:04:09]} Rd8 {[%emt 0:01:25]} 27. f3 {[%emt 0:02:13]} Rab8 {[%emt 0:00:14]} 28. Rec1 {[%emt 0:01:27]} Qc7 {[%emt 0:01:59]} 29. Qf2 {[%emt 0:00:28]} Ba8 {[%emt 0:00:41]} 30. c5 {[%emt 0:05:52]} Bc6 {[%emt 0:00:57]} 31. Bd3 {[%emt 0:05:46]} Qb7 {[%emt 0:01:19]} 32. Qe2 {[%emt 0:00:42]} Ra8 {[%emt 0:00:20]} 33. Kh1 {[%emt 0:02:57]} Nb8 {[%emt 0:01:19]} 34. Bc4 {[%emt 0:01:49]} Be8 {[%emt 0:00:13]} 35. Rd1 {[%emt 0:02:33]} Nc6 {[%emt 0:00:45]} 36. Rxd8 {[%emt 0:00:11]} Bxd8 {[%emt 0:00:04]} 37. h3 {[%emt 0:01:28]} h6 {[%emt 0:00:06]} 38. Qc2 {[%emt 0:01:30]} Bc7 {[%emt 0:00:12]} 39. Be2 {[%emt 0:01:27]} Bd7 {[%emt 0:01:47]} 40. Qd3 {[%emt 0:02:39]} Bc8 {[%emt 0:00:35]} 41. Qc4 {[%emt 0:31:28]} Rb8 {[%emt 0:33:17]} 42. Bd2 {[%emt 0:02:58]} Kf8 {[%emt 0:00:46]} 43. Ra4 $14 {[%emt 0:00:50]} Kg8 {[%emt 0:00:25]} 44. Be1 {[%emt 0:00:00]} Kf8 {[%emt 0:00:00]} 45. Bf2 {[%emt 0:00:00]} Kg8 {[%emt 0:00:00]} 46. Nd2 Kf8 47. Qb3 Nxa5 48. Qa2 Nc6 1/2-1/2

[Event "LTU-chT 2019"]
[Site "Lithuania"]
[Date "2019.03.30"]
[Round "3.20"]
[White "Viskelis, Darius"]
[Black "Valiunas, Rimantas"]
[Result "1/2-1/2"]
[ECO "B52"]
[WhiteElo "2242"]
[BlackElo "2064"]
[Annotator "NA"]
[PlyCount "58"]
[EventDate "2019.01.26"]
[EventType "team-tourn"]
[EventCountry "LTU"]
[SourceTitle "playchess.com"]
[Source "ChessBase"]
[SourceQuality "1"]
[TimeControl "40/5400+30:1800+30"]

{[%evp 10,43,23,21,32767,32767,32767,32767,32767,32767,32767,32767,32767,32,32767,32767,25,22,38,18,18,-145,-156,-149,-153,-143,-138,-169,-72,-70,-66,-80,-68,-100,-122,-118]} 1. e4 {[%emt 0:00:00]} c5 {[%emt 0:00:06]} 2. Nf3 {[%emt 0:00:00]} d6 {[%emt 0:00:06]} 3. Bb5+ {[%emt 0:00:05]} Bd7 {[%emt 0:00:30]} 4. Bxd7+ {[%emt 0:00:08]} Nxd7 {[%emt 0:00:45]} 5. O-O {[%emt 0:00:08]} Ngf6 {[%emt 0:00:25]} 6. Re1 {[%emt 0:00:10]} e6 {[%emt 0:02:06]} 7. b3 {[%emt 0:02:42]} Be7 {[%emt 0:00:56]} 8. Bb2 {[%emt 0:00:27]} O-O {[%emt 0:00:30]} 9. c4 {[%emt 0:01:08]} Qc7 {[%emt 0:09:39]} 10. Nc3 {[%emt 0:01:38]} a6 {[%emt 0:03:29]} 11. d4 {[%emt 0:06:12]} cxd4 {[%emt 0:12:52]} 12. Nxd4 {[%emt 0:00:59]} Rfd8 {[%emt 0:02:34] B52: Sicilian: Moscow Variation with 3...Bd7} 13. Qf3 {[%emt 0:01:55]} Ne5 {[%emt 0:01:28] [#]} 14. Qg3 $146 {[%emt 0:05:21]} ({Predecessor:} 14. Qh3 Qb6 15. Rad1 Rac8 16. Re2 Ng6 17. Qe3 Qa5 18. h3 Qh5 19. Bc1 Qc5 20. Na4 {1-0 (54) Dzhumaev,M (2549)-Salubre,J (2322) Manila 2008}) 14... Nc6 {[%emt 0:10:48]} 15. Nd5 $2 {[%emt 0:07:09]} (15. Nxc6 $11 Qxc6 16. a4) 15... exd5 {[%emt 0:04:46]} 16. Nf5 {[%emt 0:01:16]} Nh5 {[%emt 0:04:35]} 17. Qf3 {[%emt 0:07:43]} Bf6 {[%emt 0:05:05]} 18. e5 {[%emt 0:04:22]} Bxe5 {[%emt 0:05:55]} (18... dxe5 $19 19. Qxh5 d4) 19. Bxe5 {[%emt 0:01:30]} Nxe5 {[%emt 0:00:35]} 20. Qxh5 {[%emt 0:00:25]} dxc4 {[%emt 0:02:32]} 21. Rac1 {[%emt 0:01:25]} b5 {[%emt 0:02:35]} 22. bxc4 $17 {[%emt 0:02:15]} bxc4 {[%emt 0:00:15]} 23. Re3 {[%emt 0:08:53]} Ng6 {[%emt 0:06:54]} 24. Rce1 {[%emt 0:04:28]} c3 {[%emt 0:02:18]} 25. Rh3 {[%emt 0:19:21]} h6 {[%emt 0:00:11]} 26. Nxg7 {[%emt 0:00:49]} Kxg7 {[%emt 0:02:00]} 27. Qxh6+ {[%emt 0:00:07]} Kg8 {[%emt 0:00:24]} 28. Qh7+ {[%emt 0:03:16]} Kf8 29. Ra1 Ne5 {[%emt 0:09:54]} 1/2-1/2

[Event "LTU-chT 2019"]
[Site "Lithuania"]
[Date "2019.03.30"]
[Round "4.2"]
[White "Narmontas, Tauras"]
[Black "Krivonosov, Oleg"]
[Result "0-1"]
[ECO "C56"]
[WhiteElo "2244"]
[BlackElo "2398"]
[Annotator "ChessBase"]
[PlyCount "106"]
[EventDate "2019.01.26"]
[EventType "team-tourn"]
[EventCountry "LTU"]
[SourceTitle "playchess.com"]
[Source "ChessBase"]
[SourceQuality "1"]
[TimeControl "40/5400+30:1800+30"]

1. e4 {[%emt 0:00:52]} e5 {[%emt 0:00:00]} 2. Nf3 {[%emt 0:00:06]} Nc6 {[%emt 0:00:00]} 3. d4 {[%emt 0:00:14]} exd4 {[%emt 0:00:00]} 4. Bc4 {[%emt 0:00:07]} Nf6 {[%emt 0:00:24]} 5. O-O {[%emt 0:00:12]} Nxe4 {[%emt 0:00:25]} 6. Re1 {[%emt 0:00:06]} d5 {[%emt 0:00:29]} 7. Bxd5 {[%emt 0:00:13]} Qxd5 {[%emt 0:00:05]} 8. Nc3 {[%emt 0:00:02]} Qh5 {[%emt 0:00:11]} 9. Nxe4 {[%emt 0:01:42]} Be6 {[%emt 0:00:09]} 10. Neg5 {[%emt 0:00:26]} O-O-O {[%emt 0:00:41]} 11. Nxe6 {[%emt 0:00:39]} fxe6 {[%emt 0:00:06]} 12. Rxe6 {[%emt 0:06:53]} Bd6 {[%emt 0:02:28]} 13. Qd3 {[%emt 0:04:13]} Rhe8 {[%emt 0:07:04]} 14. Rxe8 {[%emt 0:00:45]} Rxe8 {[%emt 0:00:37]} 15. Bd2 {[%emt 0:00:22]} g6 {[%emt 0:10:06]} 16. c3 {[%emt 0:12:29]} Ne5 {[%emt 0:07:17]} 17. Nxe5 {[%emt 0:02:09]} Bxe5 {[%emt 0:00:46]} 18. g3 {[%emt 0:11:16]} dxc3 {[%emt 0:02:55]} 19. Bxc3 {[%emt 0:00:48]} Bxc3 {[%emt 0:00:23]} 20. Qxc3 {[%emt 0:00:22]} Qe5 {[%emt 0:00:51]} 21. Qc2 {[%emt 0:10:25]} a6 {[%emt 0:08:12]} 22. Rc1 {[%emt 0:02:56]} Re6 {[%emt 0:01:09]} 23. Qc4 {[%emt 0:01:44]} Kb8 {[%emt 0:03:51]} 24. Rd1 {[%emt 0:00:38]} Rc6 {[%emt 0:06:27]} 25. Qg8+ {[%emt 0:29:36]} Ka7 {[%emt 0:00:17]} 26. b4 {[%emt 0:02:15]} h5 {[%emt 0:07:09]} 27. h4 {[%emt 0:00:07]} Qe4 {[%emt 0:01:21]} 28. Qb3 {[%emt 0:03:01]} Rc2 {[%emt 0:02:40]} 29. Qf7 {[%emt 0:04:45]} b6 {[%emt 0:07:56]} 30. a3 {[%emt 0:00:09]} Rc3 {[%emt 0:01:55]} 31. a4 {[%emt 0:01:04]} Kb7 {[%emt 0:00:39]} 32. Qd5+ {[%emt 0:01:22]} Qxd5 {[%emt 0:00:17]} 33. Rxd5 {[%emt 0:00:01]} Rc4 {[%emt 0:01:04]} 34. Rg5 {[%emt 0:02:12]} Rxb4 {[%emt 0:00:37]} 35. Rxg6 {[%emt 0:00:02]} Rxa4 {[%emt 0:00:59]} 36. f4 {[%emt 0:01:48]} a5 {[%emt 0:00:30]} 37. f5 {[%emt 0:01:02]} Rd4 {[%emt 0:00:36]} 38. f6 {[%emt 0:01:14]} Rd8 {[%emt 0:00:12]} 39. f7 {[%emt 0:00:36]} Rf8 {[%emt 0:00:04]} 40. Rf6 {[%emt 0:00:03]} a4 {[%emt 0:00:06]} 41. Rf3 {[%emt 0:30:56]} a3 {[%emt 0:31:41]} 42. Kg2 {[%emt 0:00:00]} a2 {[%emt 0:00:00]} 43. Ra3 {[%emt 0:00:00]} Rxf7 {[%emt 0:00:00]} 44. Rxa2 {[%emt 0:00:00]} c5 {[%emt 0:00:00]} 45. Rf2 {[%emt 0:00:00]} Rh7 {[%emt 0:00:00]} 46. Rf6 {[%emt 0:00:00]} c4 {[%emt 0:00:00]} 47. Kf2 {[%emt 0:00:00]} Re7 {[%emt 0:00:00]} 48. Rf4 {[%emt 0:00:00]} b5 {[%emt 0:00:00]} 49. Rf5 {[%emt 0:00:00]} Kc6 {[%emt 0:00:00]} 50. Rxh5 {[%emt 0:00:00]} c3 {[%emt 0:00:00]} 51. Rh6+ {[%emt 0:00:00]} Kd5 {[%emt 0:00:00]} 52. Rh8 {[%emt 0:00:00]} Rc7 {[%emt 0:00:00]} 53. Rd8+ {[%emt 0:00:00]} Ke5 0-1

[Event "LTU-chT 2019"]
[Site "Lithuania"]
[Date "2019.03.30"]
[Round "4.3"]
[White "Vedrickas, Tautvydas"]
[Black "Dubovikas, Tomas"]
[Result "1-0"]
[ECO "A43"]
[WhiteElo "2390"]
[BlackElo "2171"]
[Annotator "NA"]
[PlyCount "65"]
[EventDate "2019.01.26"]
[EventType "team-tourn"]
[EventCountry "LTU"]
[SourceTitle "playchess.com"]
[Source "ChessBase"]
[SourceQuality "1"]
[TimeControl "40/5400+30:1800+30"]

1. d4 {[%emt 0:00:00]} Nf6 {[%emt 0:01:18]} 2. c4 {[%emt 0:00:00]} c5 {[%emt 0:00:34]} 3. d5 {[%emt 0:00:00]} d6 {[%emt 0:00:39]} 4. Nc3 {[%emt 0:00:05]} g6 {[%emt 0:00:45]} 5. e4 {[%emt 0:00:24]} Bg7 {[%emt 0:00:29]} 6. f3 {[%emt 0:00:44]} e6 {[%emt 0:01:33] E80: King's Indian: Sämisch: Lines without early ...0-0} 7. Bg5 {[%emt 0:00:26]} (7. Nge2 exd5 8. cxd5 a6 9. a4 O-O 10. Ng3 Nbd7 11. Be2 Ne8 12. Bf4 Rb8 13. O-O c4 14. Bxc4 Qb6+ 15. Rf2 Bd4 16. Qd2 Ne5 17. Bf1 Bxf2+ 18. Qxf2 Qxf2+ 19. Kxf2 {½-½ (32) Carlsen,M (2835)-Nepomniachtchi,I (2763) Wijk aan Zee 2019}) 7... e5 {[%emt 0:21:38]} 8. Nge2 {[%emt 0:02:10]} a6 $146 {[%emt 0:01:06]} ({Predecessor:} 8... O-O 9. Qc2 a6 10. a4 Qa5 11. Bd2 Qc7 12. Ng3 Nbd7 {1-0 (37) Al Khelaifi,K (1511)-Gondwe,V Tromsoe 2014}) 9. Qd2 {[%emt 0:01:04]} h6 {[%emt 0:02:29]} 10. Be3 {[%emt 0:00:07]} Nh5 {[%emt 0:05:18]} 11. g4 {[%emt 0:04:31]} Nf6 {[%emt 0:00:20]} 12. h3 {[%emt 0:28:35]} h5 {[%emt 0:25:34]} 13. Rg1 {[%emt 0:00:46]} Qa5 {[%emt 0:02:13]} 14. Nc1 {[%emt 0:02:13]} Nbd7 {[%emt 0:10:44]} 15. a3 {[%emt 0:02:20]} Rb8 {[%emt 0:02:45]} 16. Rb1 {[%emt 0:05:23]} Qc7 {[%emt 0:02:05]} 17. b4 {[%emt 0:01:49]} b6 {[%emt 0:01:31]} 18. Kf2 {[%emt 0:04:15]} Kf8 {[%emt 0:01:19]} 19. Kg2 {[%emt 0:05:53]} Kg8 {[%emt 0:04:14]} 20. Be2 {[%emt 0:00:55]} Ra8 {[%emt 0:05:08]} 21. Nd3 {[%emt 0:04:39]} Qd8 {[%emt 0:01:09]} 22. Nf2 {[%emt 0:13:15]} Qe7 {[%emt 0:01:08]} 23. Bd1 {[%emt 0:01:40]} Ra7 {[%emt 0:01:13]} (23... hxg4 $16 24. fxg4 cxb4 25. axb4 (25. Rxb4 Qd8 $14) 25... a5) 24. Ba4 {[%emt 0:01:25]} Ra8 {[%emt 0:00:13]} (24... hxg4 $16 25. hxg4 (25. fxg4 b5 $14) 25... b5) 25. Bc6 {[%emt 0:01:06]} Ra7 {[%emt 0:00:19]} 26. Na4 {[%emt 0:01:38]} Qd8 {[%emt 0:03:46]} 27. Rgc1 {[%emt 0:00:52]} (27. g5 $18) 27... Rh7 {[%emt 0:00:39] [#]} 28. Nxb6 $1 {[%emt 0:04:41]} Nxb6 {[%emt 0:02:01]} 29. bxc5 {[%emt 0:00:07]} dxc5 {[%emt 0:01:38]} 30. Bxc5 {[%emt 0:00:09]} hxg4 {[%emt 0:00:29]} 31. hxg4 {[%emt 0:01:37]} Nxg4 $18 {[%emt 0:00:39]} (31... Bh6 $142) 32. fxg4 {[%emt 0:01:12]} Bh6 {[%emt 0:00:28]} 33. Bxb6 {[%emt 0:03:09]} 1-0